Cogmind - Beta 16.1 @@@ ROGUE MODE // 2026.03.04 @ 12:24:49 Player: the Result: Destroyed by S-10 Pest with Light Assault Rifle Performance ------------- Evolutions (0) 0 Regions Visited (2) 400 Robots Destroyed (41) 205 Value Destroyed (882) 882 Prototype IDs (4) 80 Alien Tech Used (0) 0 Bonus (0) 0 TOTAL SCORE: 1567 Bonus ------- None Cogmind --------- Core Integrity 0/250 Matter 124/300 Energy 204/250 System Corruption 0% Temperature Cool (11) Movement Treading (160) Location -10/Subcaves Parts ------- > --- POWER (1) -------- Ion Engine > --- PROPULSION (2) --- Light Treads Spiked Treads > --- UTILITY (2) ------ Large Storage Unit Improved Terrain Scanner > --- WEAPON (2) ------- Subdweller Beam Cannon Autogun > --- INVENTORY (15) --- Light Treads Light Treads Disposable Heat Sink Huge Storage Unit Seismic Detector Medium Armor Plating Subdweller Laser Subdweller Beam Cannon Autogun Autogun Autogun Subdweller Machine Gun Slug Cannon Subdweller Shrapnel Launcher Multitool Peak State ------------ > --- POWER ------------ Ion Engine > --- PROPULSION ------- Light Treads Spiked Treads > --- UTILITY ---------- Large Storage Unit Improved Terrain Scanner > --- WEAPON ----------- Subdweller Beam Cannon Slug Cannon > --- INVENTORY -------- Light Treads Light Treads Disposable Heat Sink Huge Storage Unit Seismic Detector Medium Armor Plating Subdweller Laser Autogun Autogun Autogun Autogun Subdweller Machine Gun Subdweller Shrapnel Launcher Multitool Piercing Trap [Rating: 16] Favorites ----------- Power Ion Engine Engine Ion Engine Propulsion Light Treads Treads Light Treads Utility Large Storage Unit Device Seismic Detector Storage Large Storage Unit Protection Medium Armor Plating Weapon Subdweller Beam Cannon Energy Gun Small Laser Energy Cannon Subdweller Beam Cannon Ballistic Gun Assault Rifle Ballistic Cannon Slug Cannon Launcher Subdweller Shrapnel Launcher Special Weapon Mining Laser Build | -11 -10 -10 ------- Run | Yrd Mat Sub Slots Evolved . | . . . Power . | . . . Propulsion . | . . . Utility . | . . . Weapon . | . . . Parts Attached 35 | 7 12 16 Power 2 | 1 1 . Engine 2 | 1 1 . Core . | . . . Reactor . | . . . Propulsion 5 | 2 . 3 Treads 5 | 2 . 3 Leg . | . . . Wheel . | . . . Hover . | . . . Flight . | . . . Utility 9 | 2 4 3 Device 3 | 1 1 1 Storage 3 | 1 2 . Processor . | . . . Hackware . | . . . Protection 3 | . 1 2 Artifact . | . . . Weapon 19 | 2 7 10 Energy Gun 2 | 1 1 . Energy Cannon 8 | . 3 5 Ballistic Gun 3 | 1 . 2 Ballistic Cannon 3 | . 2 1 Launcher 2 | . 1 1 Special Weapon 1 | . . 1 Impact Weapon . | . . . Slashing Weapon . | . . . Piercing Weapon . | . . . Special Melee Weapon . | . . . Unidentified Prototypes . | . . . Parts Lost 4 | . 3 1 Power 1 | . 1 . Propulsion 1 | . . 1 Utility . | . . . Weapon 2 | . 2 . Highest Loss Streak 2 | . 2 1 To Critical Strikes . | . . . Average Backups 14 | 2 15 14 Power . | . . . Propulsion 2 | . 2 2 Utility 4 | . 5 4 Weapon 6 | . 6 6 Tool/Special . | . . . Unused Backups 17 | . 1 16 Power . | . . . Propulsion 4 | . . 4 Utility 3 | . . 3 Weapon 8 | . . 8 Tool/Special 2 | . 1 1 Average Slot Usage (%) 98 | . 92 99 Engine 13 | . 10 14 Treads 28 | . 28 28 Device 13 | . 13 13 Storage 14 | . 14 14 Energy Cannon 16 | . 10 17 Ballistic Gun 1 | . 5 . Ballistic Cannon 5 | . 5 5 Launcher 3 | . . 4 Peak Build Rating 16 | 7 10 16 Average Rating 11 | 5 8 12 On Entrance 5 | . 7 9 Avg Prop Armor Cover (%) . | . . . Naked Turns . | . . . Heaviest Build 92 | 12 92 48 Greatest Support 40 | 40 40 40 Greatest Overweight (x) 2 | . 2 1 Average Overweight (x) . | . . . Largest Inventory Capacity 25 | 8 25 25 Average Capacity 15 | 7 19 15 Most Carried 21 | 5 21 18 Average Carried 14 | 2 15 14 Final Capacity 25 | 8 25 15 Final Carried 19 | 5 19 15 Class Distribution -------------------- 100% | Mutant Dominant Class ---------------- Mutant | -10/Materials Mutant | -10/Subcaves Resources | -11 -10 -10 ----------- Run | Yrd Mat Sub Matter Collected 1186 | 315 344 527 Remotely . | . . . Salvage Created 1364 | 184 563 617 Parts 103 | 17 41 45 Haulers Intercepted 2 | . 2 . Recyclers Shooed . | . . . Parts Field Recycled . | . . . Retrieved Matter . | . . . Parts Self-Destructed 8 | . . 8 Prevented . | . . . Parts Restored . | . . . Kills | -11 -10 -10 ------- Run | Yrd Mat Sub Combat Hostiles Destroyed 27 | . 13 14 Guns 1 | . 1 . Cannons 22 | . 9 13 AOE 3 | . 3 . Classes Destroyed 9 | 3 5 1 Worker 3 | 2 1 . Tunneler 4 | 4 . . Hauler 2 | . 2 . Recycler 1 | 1 . . Operator 1 | . 1 . Watcher 3 | . 3 . Swarmer 10 | . 6 4 Grunt 7 | . 7 . Subdweller 10 | . . 10 Best Kill Streak 5 | 3 5 3 Combat Bots Only 5 | . 5 3 Max Kills in Single Turn 2 | 1 2 1 Gunslinging . | . . . Exploded 1 | . 1 . Melee . | . . . Uniques/NPCs Destroyed . | . . . Combat | -11 -10 -10 -------- Run | Yrd Mat Sub Hostile Shots Fired 187 | . 93 94 Missed 58 | . 30 28 Hits 129 | . 63 66 Projectile 129 | . 63 66 Critical Strikes 2 | . . 2 Damage Taken 1503 | . 612 891 Core 257 | . 106 151 Absorbed by Shields . | . . . Core Remaining (%) 100 | 100 . . Volleys Fired 170 | 15 48 107 Largest 2 | 2 2 2 Hottest 160 | 60 120 160 Shots Fired 276 | 30 85 161 Gun 75 | 30 37 8 Cannon 183 | . 43 140 Launcher 11 | . 5 6 Special 7 | . . 7 Kinetic 100 | 15 43 42 Thermal 165 | 15 31 119 Explosive 5 | . 5 . Electromagnetic 6 | . 6 . Robot Hit Streak 20 | 8 10 20 Robot Miss Streak 5 | 2 5 3 Penetration Max . | . . . Secondary Targets . | . . . Shots Hit Robots 140 | 18 43 79 Core Hits 51 | 7 26 18 Critical Kills 1 | . . 1 Critical Parts Destroyed 1 | . 1 . Critical Strikes 3 | . 2 1 Meltdown 1 | . . 1 Destroy 1 | . 1 . Blast 1 | . 1 . Melee Attacks . | . . . Impact . | . . . Slashing . | . . . Piercing . | . . . Sneak Attacks . | . . . Combat Hostiles . | . . . Follow-up Attacks . | . . . Damage Inflicted 2690 | 213 886 1591 Guns 472 | 213 222 37 Cannons 2006 | . 452 1554 Explosions 192 | . 192 . Melee . | . . . Ramming 20 | . 20 . Kinetic 727 | 113 362 252 Thermal 1727 | 100 288 1339 Explosive 192 | . 192 . Electromagnetic 24 | . 24 . Impact . | . . . Slashing . | . . . Piercing . | . . . Highest Corruption . | . . . Average Corruption . | . . . Corruption Purged . | . . . Corruption Blocked . | . . . Overload Shots . | . . . Overflow Damage 16 | . 16 . Projectiles 11 | . 11 . Explosions 5 | . 5 . Melee . | . . . Knockbacks 5 | . 2 3 Impact . | . . . Kinetic 4 | . 2 2 Secondary 1 | . . 1 Self-Inflicted Damage . | . . . Shots . | . . . Rammed 5 | . 5 . Targets Rammed 5 | . 5 . Kicked . | . . . Crushed . | . . . Highest Temperature 421 | . 397 421 Average Temperature 124 | . 124 124 Received Heat Transfer 270 | . 141 129 Effects 4 | . 2 2 Shutdowns 1 | . . 1 Interference 1 | . 1 . Damage (minor) 2 | . 1 1 Siege Activations . | . . . Martial Activations . | . . . Shielding Activations . | . . . Robots Disrupted . | . . . Combat Hostiles . | . . . Robots Corrupted . | . . . Combat Hostiles . | . . . Parts Fried . | . . . Impact Corruptions . | . . . Robots Melted 1 | . . 1 Combat Hostiles 1 | . . 1 Parts Melted 1 | . . 1 Heat Transferred 2852 | 225 592 2035 Parts Sabotaged . | . . . Parts Stolen . | . . . Parts Stripped . | . . . Power Chain Reactions . | . . . Alert | -11 -10 -10 ------- Run | Yrd Mat Sub Maximum Alert Level . | . . . Low Security (%) 100 | 100 100 . Level 1 . | . . . Level 2 . | . . . Level 3 . | . . . Level 4 . | . . . Level 5 . | . . . High Security . | . . . Max Security . | . . . Peak Influence 138 | 15 138 . Initial . | . . . Average 42 | 2 46 . Influence Increases 620 | 35 495 90 Destroy 0b10 Robot/C 340 | . 260 80 Destroy 0b10 Robot/NC 75 | 35 40 . Destroy Leader 70 | . 60 10 Successful Hack 39 | . 39 . Select Force Hacks 60 | . 60 . Destroy Structure 36 | . 36 . Influence Decreases 600 | 35 391 174 Entered New Map 51 | . . 51 Time Decay 509 | 35 361 113 Lost Part 40 | . 30 10 Squads Dispatched 2 | . 2 . Investigation 2 | . 2 . Extermination . | . . . Reinforcement . | . . . Assault . | . . . Garrison . | . . . Intercept . | . . . Searches Triggered . | . . . Construction Impeded . | . . . Haulers Reinforced . | . . . Active Scanning Responses . | . . . Cargo Convoy Interrupts . | . . . Stealth | -11 -10 -10 --------- Run | Yrd Mat Sub Distress Signals . | . . . Communications Jammed . | . . . Distress Signals . | . . . Times Spotted 34 | . 18 16 Peak Tracking Total 4 | . 4 3 Tactical Retreats . | . . . Traps | -11 -10 -10 ------- Run | Yrd Mat Sub Traps Triggered . | . . . Indirectly . | . . . Trap Hack Attempts . | . . . Triggered . | . . . Disarmed . | . . . Reprogrammed . | . . . Reused . | . . . Traps Extracted . | . . . Installed 1 | . . 1 Triggered . | . . . Most Traps Carried 1 | . . 1 Machines | -11 -10 -10 ---------- Run | Yrd Mat Sub Machines Disabled . | . . . Max in Single Turn . | . . . Machines Repaired . | . . . Machines Dismantled . | . . . Machines Sabotaged . | . . . Overloaded Fab Kills . | . . . Hacking | -11 -10 -10 --------- Run | Yrd Mat Sub Machines Accessed 11 | . 11 . Terminals 8 | . 8 . Fabricators . | . . . Repair Stations 1 | . 1 . Recycling Units 2 | . 2 . Scanalyzers . | . . . Garrison Access . | . . . Total Hacks 40 | . 40 . Successful 20 | . 20 . Failed 19 | . 19 . Catastrophic . | . . . Database Lockouts 1 | . 1 . Manual 33 | . 33 . Terminals 34 | . 34 . Fabricators . | . . . Repair Stations 2 | . 2 . Recycling Units 4 | . 4 . Scanalyzers . | . . . Garrison Access . | . . . Terminal Hacks 7 | . 7 . Part Schematic 1 | . 1 . Robot Analysis 1 | . 1 . Prototype ID Bank 2 | . 2 . Terminal Index 1 | . 1 . Locate Traps 2 | . 2 . Fabricator Hacks . | . . . Repair Station Hacks 1 | . 1 . Scan Component 1 | . 1 . Recycling Unit Hacks 1 | . 1 . Retrieve Components 1 | . 1 . Scanalyzer . | . . . Garrison Access Hacks . | . . . Unauthorized Hacks 11 | . 11 . Terminals 9 | . 9 . Assimilate 1 | . 1 . Botnet 2 | . 2 . Operators 1 | . 1 . Skim 5 | . 5 . Fabricators . | . . . Repair Stations . | . . . Recycling Units 2 | . 2 . Tunnel 2 | . 2 . Scanalyzers . | . . . Garrison Access . | . . . Data Cores Recovered . | . . . Used . | . . . Hacking Detections 10 | . 10 . Full Trace Events . | . . . Feedback Events . | . . . Feedback Blocked . | . . . Robot Schematics Acquired . | . . . Robots Built . | . . . Authchips . | . . . Time . | . . . Total Robot Build Rating . | . . . Part Schematics Acquired 1 | . 1 . Parts Built . | . . . Authchips . | . . . Time . | . . . Total Part Build Rating . | . . . Part Studies Acquired . | . . . Parts Repaired . | . . . Time . | . . . Parts Recycled . | . . . Recycled Matter . | . . . Retrieved Matter . | . . . Retrieved Components 10 | . 10 . Parts Scanalyzed . | . . . Part Schematics Acquired . | . . . Parts Damaged . | . . . Bothacking | -11 -10 -10 ------------ Run | Yrd Mat Sub Used RIF Installer . | . . . Robots Hacked . | . . . Non-combat . | . . . Combat . | . . . Robot Hacks Applied . | . . . Relay Couplers Released . | . . . Fabnet Peak Effective % . | . . . Robots Rewired . | . . . Allies Hacked . | . . . Hacks Repelled . | . . . Allies | -11 -10 -10 -------- Run | Yrd Mat Sub Total Allies . | . . . Largest Group . | . . . Highest-Rated Group . | . . . Highest-Rated Ally . | . . . Total Orders . | . . . Ally Attacks . | . . . Total Damage . | . . . Kills . | . . . Allies Corrupted . | . . . Allies Melted . | . . . Intel | -11 -10 -10 ------- Run | Yrd Mat Sub Active Infowar (turns) 11243 | 93 2056 9094 Terrain 1737 | . . 1737 Seismic 9506 | 93 2056 7357 Robot Analysis Total 1 | . 1 . Derelict Logs Recovered 1 | . . 1 Drone Launches . | . . . Drone Recoveries . | . . . Exploration | -11 -10 -10 ------------- Run | Yrd Mat Sub Turns Passed 11808 | 181 2154 9473 Spaces Moved 2462 | 80 696 1686 Core 6 | 6 . . Treads 2456 | 74 696 1686 Legs . | . . . Wheels . | . . . Hover . | . . . Flight . | . . . Fastest Speed 50 | 50 160 160 Average Speed 218 | 151 218 222 Slowest Speed 320 | 160 320 250 Overloaded Moves . | . . . Propulsion Burnouts . | . . . Robots Hopped . | . . . Potential Cave-ins . | . . . Cave-ins Triggered . | . . . Exploration Rate (%) 56 | 5 93 72 Regions Visited 2 Branch Regions 1 Pre-discovered Areas 3 | . 2 1 Known Exits Taken 1 | . 1 . Unknown Exits Taken 1 | 1 . . Scrap Searched 4 | . . 4 Spaces Dug 56 | . . 56 Terrain Destroyed 114 | . 32 82 Melee . | . . . Projectile 16 | . . 16 AOE 98 | . 32 66 Terrain Rammed . | . . . Walls Destroyed . | . . . Machines Disabled . | . . . Actions | -11 -10 -10 --------- Run | Yrd Mat Sub Total 8573 | 106 1240 7227 Wait 5798 | . 444 5354 Move 2460 | 79 695 1686 Hop . | . . . Pick Up 40 | 5 22 13 Fast Attach 12 | 7 1 4 Attach 9 | . 5 4 Detach 1 | . 1 . Swap 48 | . 11 37 Drop 29 | . 8 21 Fire 170 | 15 48 107 Melee . | . . . Ram . | . . . Kick . | . . . Crush 5 | . 5 . Escape Stasis . | . . . Rewire . | . . . Trap 1 | . . 1 Miscellaneous . | . . . Route ------- -11/Scrapyard -10/Materials (discovered 5 exits: *Mat x3 / [*Min] / *Sub) -10/Subcaves (discovered 3 exits: [*Mat] / [Rec] / [*Scr]) History --------- Turn | Location | Event 6 | -11/Scrapyard | Discovered new exit (range 14) 182 | -11/Scrapyard | Entered Materials 319 | -10/Materials | Build established: Mutant 675 | -10/Materials | Discovered new exit (range 12) 985 | -10/Materials | Discovered new exit (range 14) 1160 | -10/Materials | Identified exit to Subcaves 1160 | -10/Materials | Identified exit to Materials 1250 | -10/Materials | Learned Storage trap positions 1279 | -10/Materials | Learned Materials emergency access door positions 1296 | -10/Materials | Learned Storage trap positions 1303 | -10/Materials | Learned Storage trap positions 1309 | -10/Materials | Loaded intel: 18 trap records 1354 | -10/Materials | Learned Storage stockpile data 1933 | -10/Materials | Central database locked down 2336 | -10/Materials | Entered Subcaves 2337 | -10/Subcaves | Approached by a straggling Scientist 2577 | -10/Subcaves | Learned Materials security intel 2580 | -10/Subcaves | A swath of the cavern ceiling suddenly collapsed 3194 | -10/Subcaves | Scientist uncovered a shortcut to Scraptown 3459 | -10/Subcaves | Disturbed a concealed Subdweller 3460 | -10/Subcaves | Core integrity fell below 50% 3733 | -10/Subcaves | Shifting Twisted Machinery released Sub. Beam Cannon 3735 | -10/Subcaves | Shifting Twisted Machinery released Flamer 4081 | -10/Subcaves | Core integrity fell below 20% 6197 | -10/Subcaves | Shifting Twisted Machinery released Flamer 6207 | -10/Subcaves | Shifting Twisted Machinery released Battle Cannon 10369 | -10/Subcaves | Learned location of Zion (-7) 10369 | -10/Subcaves | Met a Zionite searching for "candidates" 11112 | -10/Subcaves | Discovered new exit (range 3) 11781 | -10/Subcaves | Discovered new exit (range 16) 11809 | -10/Subcaves | Destroyed by S-10 Pest with Light Assault Rifle Last Messages --------------- 08034_ Dropped Piercing Trap. 08035_ Installed Piercing Trap. 10192_ A9-8WP(z): "She is not going to be happy we haven't found any suitable candidates yet." 10369_ A9-8WP(z): "Hey you! It's really dangerous down here, I feel that you could die at any moment. For your health and safety might I suggest a trip to Zion?" World map updated: -7/Zion. 11112_ EXIT=FOUND 11733_ Searching scrap... 11733_ Found Battle Rifle. 11733_ Found Sub. Beam Cannon. 11733_ Found 62 Matter. 11734_ Acquired 62 matter. 11738_ Acquired Sub. Beam Cannon. 11751_ Subatomizers dissect the Battle Rifle. 11781_ EXIT=FOUND 11805_ Destroyed Lgt. Ion Engine. 11808_ S-10 Pest destroyed. Map ----- +----------------------------------------------------+ | ???????????????#"" " #?????#??#?? | | ???????????????#""" """ # # #????#?????? | | ???????????????# """""######### #????#?????? | | ???????????????## """##?#????#### #????#?#???? | | ????????????????######?#?????##########??????#?#?# | | ????????????????????????##???????#??#????????????? | | ??????????????????????????#?#?#???##????#????????? | | ????????????????????????#??????#?##?#???? #??#?##? | | ?????????????????????????????#??##?#?##?#???#??#?? | | ????????????????????????????????#??#??#?#???#????? | | ???????????????????????????###??????#?##? ??#????? | | ??????????????????????????????#?##???????????????? | | ???????????????????????????????#????###??????????? | | ???????????????????#????????????????#????????????? | | ?????????????????????????????????????????????????? | | ???????????????????????????????????#?????????????? | | ?????????????????????????????????????###?????????? | | ??????????????????????????????#??????# #######???? | | ???????????????###???????????????????## ## ##### | | ???????????????# ##??????????????### " ## # | | ????????????????? #????????????## #####[# | | ??????????????????# #??????????## ###???## # | | ??????????????????# ########### #?????# ## # | | ??????????????????# ## # ###?????#### # | | ??????????????????????# ##???????? | | ??????????????????????# @ #??????# | | ??????????????? ### ###?????# ### # | | ??????????? < [s##?### #????? ???#### | | ??????????? =%s ????? ?? ????????# | | ??????????? ## ???? ?????????## | | ???????????? ## #?## ??? ? # ??????????# | | ????????????###???#####????###???##?#?##?????????? | | ??????????????????????#???????#??????????????????? | | ?????????????????????????????????????????????????? | | ?????????????????#???????????????????????????????? | | ?????????????????????????????????????????????????? | | ?????????????????????????????????????????????????? | | ???????????????????????????????????#?????????????? | | ??????????????????????#??????????????????????????? | | ?????????????????????????????????????????????????? | | ?????????????????????????????????????????????????? | | ?????????????????????????????????????????????????? | | ?????????????????????????????????????????????????? | | ?????????????????????????????????????????????????? | | ?????????????????????????????????????????????????? | | ?????????????????????????????????????????????????? | | | | | | | | | +----------------------------------------------------+ Best States ------------- Heat Dissipation 25 Energy Generation 10 Energy Capacity 250 Matter Stores 300 Matter Capacity 300 Sight Range 16 Terrain Scan Range 16 Terrain Scan Density 10 Armor Coverage 225 Evasion (%) 40 Recoil Reduction 2 Item Schematics ----------------- Hcp. Storage Unit | -10/Materials | Hacked Robot Schematics ------------------ None Fabricated ------------ Nothing Repaired ---------- Nothing Studied --------- None Alien Tech Used ----------------- None Achievements -------------- None Challenges ------------ None Game ------ Seed AntigravRiotVibroblade Manual? 0 Play Time 00:41:57 Cumulative 616.2 hours Start 2026.03.04 @ 11:36:01 End 2026.03.04 @ 12:24:49 Sessions 1 Manual Loads 0 Difficulty Rogue Special Mode None Game No. 347 Rogue 347 Adventurer 0 Explorer 0 Win Type - Total 23 Types 12/0/6/0/1/0/1/2/1/0 Lore% 90 Gallery% 85 Achievement% 73 Wizard Run 0 Options --------- Layout 1 ASCII 0 Keyboard 0 Movement Numpad Keybinds 0 Fullscreen 2 Font 24/Smallcaps Map View 50x40 Zoom Use 0% Tactical HUD 1 Map Filters NONE Filters NONE Steam 1 RUN: 0e670e45-88c6-4d0a-bdf2-5f421229fd52